Cogmind - Beta 13 @@@ ROGUE MODE // 2024.04.17 @ 21:29:43 Player: Dartos Result: Core destroyed Performance ------------- Evolutions (1) 500 Regions Visited (2) 400 Robots Destroyed (25) 125 Value Destroyed (621) 621 Prototype IDs (1) 20 Alien Tech Used (0) 0 Bonus (0) 0 TOTAL SCORE: 1666 Bonus ------- None Cogmind --------- Core Integrity 0/400 Matter 300/300 Energy 100/100 System Corruption 1% Temperature Cool (0) Movement Core (100) Ox1 Location -9/Materials Parts ------- > --- POWER (1) -------- (None) > --- PROPULSION (4) --- (None) > --- UTILITY (2) ------ Small Storage Unit > --- WEAPON (2) ------- (None) > --- INVENTORY (8) ---- (None) Peak State ------------ > --- POWER ------------ Improved Ion Engine > --- PROPULSION ------- Aluminum Leg Aluminum Leg Aluminum Leg Aluminum Leg > --- UTILITY ---------- Small Storage Unit Signal Interpreter > --- WEAPON ----------- Medium Laser Small Laser > --- INVENTORY -------- Ion Engine Heavy Ion Engine Aluminum Leg Aluminum Leg Cryofiber Web Trap Scanner Light Assault Rifle Grenade Launcher [Rating: 11] Favorites ----------- Power Ion Engine Engine Ion Engine Propulsion Aluminum Leg Leg Aluminum Leg Utility Small Storage Unit Storage Small Storage Unit Processor Signal Interpreter Weapon Small Laser Energy Gun Small Laser Ballistic Gun Light Assault Rifle Launcher Grenade Launcher Build | -11 -10 -9 ------- Run | Yrd Mat Mat Slots Evolved 2 | . . 2 Power . | . . . Propulsion 2 | . . 2 Utility . | . . . Weapon . | . . . Parts Attached 23 | 6 7 10 Power 4 | 1 1 2 Engine 4 | 1 1 2 Core . | . . . Reactor . | . . . Propulsion 7 | 2 1 4 Treads . | . . . Leg 7 | 2 1 4 Wheel . | . . . Hover . | . . . Flight . | . . . Utility 3 | 1 2 . Device . | . . . Storage 1 | 1 . . Processor 2 | . 2 . Hackware . | . . . Protection . | . . . Artifact . | . . . Weapon 9 | 2 3 4 Energy Gun 4 | 1 2 1 Energy Cannon . | . . . Ballistic Gun 3 | 1 . 2 Ballistic Cannon . | . . . Launcher 2 | . 1 1 Special Weapon . | . . . Impact Weapon . | . . . Slashing Weapon . | . . . Piercing Weapon . | . . . Special Melee Weapon . | . . . Unidentified Prototypes 1 | . 1 . Parts Lost 16 | . 3 13 Power 3 | . 1 2 Propulsion 7 | . 1 6 Utility 1 | . . 1 Weapon 5 | . 1 4 Highest Loss Streak 9 | . 3 9 To Critical Strikes . | . . . Average Slot Usage (%) 92 | . 96 88 Engine 12 | . 14 10 Leg 32 | . 27 37 Storage 12 | . 14 11 Processor 11 | . 12 10 Energy Gun 15 | . 14 16 Ballistic Gun 4 | . 7 . Launcher 3 | . 4 1 Naked Turns . | . . . Heaviest Build 16 | 12 14 16 Greatest Support 40 | 20 20 40 Greatest Overweight (x) 3 | 1 1 3 Average Overweight (x) . | . . . Largest Inventory Capacity 8 | 8 8 8 Average Capacity 7 | 7 8 8 Most Carried 8 | 2 8 8 Average Carried 5 | 1 5 6 Final Capacity 8 | 8 8 8 Final Carried 7 | 2 7 . Class Distribution -------------------- 64% | Mutant 35% | Scavenger-Mutant Dominant Class ---------------- Mutant | -10/Materials Scavenger-Mutant | -9/Materials Resources | -11 -10 -9 ----------- Run | Yrd Mat Mat Matter Collected 579 | 165 188 226 Remotely . | . . . Salvage Created 819 | . 250 569 Parts 41 | . 17 24 Haulers Intercepted . | . . . Recyclers Shooed 2 | . . 2 Parts Field Recycled . | . . . Retrieved Matter . | . . . Parts Self-Destructed . | . . . Prevented . | . . . Kills | -11 -10 -9 ------- Run | Yrd Mat Mat Combat Hostiles Destroyed 20 | . 10 10 Guns 14 | . 7 7 AOE 6 | . 3 3 Classes Destroyed 7 | . 3 4 Worker 1 | . . 1 Tunneler 1 | . 1 . Recycler 2 | . . 2 Watcher 1 | . . 1 Swarmer 8 | . 6 2 Grunt 8 | . 4 4 Sentry 4 | . . 4 Best Kill Streak 5 | . 4 5 Combat Bots Only 3 | . 3 2 Max Kills in Single Turn 3 | . 2 3 Gunslinging . | . . . Exploded 1 | . 1 1 Melee . | . . . Uniques/NPCs Destroyed . | . . . Combat | -11 -10 -9 -------- Run | Yrd Mat Mat Hostile Shots Fired 250 | . 69 181 Missed 77 | . 18 59 Damage Taken 1868 | . 552 1316 Core 535 | . 124 411 Absorbed by Shields . | . . . Core Remaining (%) 75 | 100 50 . Volleys Fired 75 | . 39 36 Largest 2 | . 2 2 Hottest 96 | . 96 90 Shots Fired 141 | . 74 67 Gun 133 | . 71 62 Cannon . | . . . Launcher 8 | . 3 5 Special . | . . . Kinetic 34 | . 29 5 Thermal 99 | . 42 57 Explosive 8 | . 3 5 Electromagnetic . | . . . Robot Hit Streak 13 | . 6 13 Robot Miss Streak 8 | . 8 3 Penetration Max . | . . . Secondary Targets . | . . . Shots Hit Robots 86 | . 41 45 Core Hits 56 | . 25 31 Critical Kills . | . . . Critical Parts Destroyed . | . . . Critical Strikes 5 | . . 5 Burn 5 | . . 5 Melee Attacks . | . . . Impact . | . . . Slashing . | . . . Piercing . | . . . Sneak Attacks . | . . . Combat Hostiles . | . . . Follow-up Attacks . | . . . Damage Inflicted 1816 | . 694 1122 Guns 875 | . 387 488 Cannons . | . . . Explosions 812 | . 275 537 Melee . | . . . Ramming 129 | . 32 97 Kinetic 164 | . 139 25 Thermal 1083 | . 248 835 Explosive 440 | . 275 165 Electromagnetic . | . . . Impact . | . . . Slashing . | . . . Piercing . | . . . Highest Corruption 1 | . 1 1 Average Corruption 1 | . 1 1 Corruption Purged . | . . . Corruption Blocked . | . . . Effects 5 | . 5 . Message Errors 2 | . 2 . Heat Flow Errors 1 | . 1 . Data Loss (minor) 2 | . 2 . Overload Shots . | . . . Overflow Damage 63 | . . 63 Projectiles . | . . . Explosions 63 | . . 63 Melee . | . . . Knockbacks . | . . . Impact . | . . . Kinetic . | . . . Secondary . | . . . Self-Inflicted Damage 84 | . 22 62 Shots 5 | . 1 4 Rammed 18 | . . 18 Targets Rammed 42 | . 10 32 Kicked 24 | . 10 14 Crushed . | . . . Highest Temperature 417 | . 417 208 Average Temperature 116 | . 170 68 Received Heat Transfer 492 | . 165 327 Effects 5 | . 5 . Shutdowns 2 | . 2 . Short Circuit 3 | . 3 . Siege Activations . | . . . Robots Corrupted . | . . . Combat Hostiles . | . . . Parts Fried . | . . . Impact Corruptions . | . . . Robots Melted . | . . . Combat Hostiles . | . . . Parts Melted 5 | . 2 3 Heat Transferred 2360 | . 562 1798 Parts Sabotaged . | . . . Parts Stolen . | . . . Parts Stripped . | . . . Power Chain Reactions . | . . . Alert | -11 -10 -9 ------- Run | Yrd Mat Mat Peak Influence 244 | . 175 244 Initial 73 | . . 73 Average 80 | . 62 109 Maximum Alert Level 1 | . . 1 Low Security (%) 91 | 100 100 82 Level 1 8 | . . 17 Level 2 . | . . . Level 3 . | . . . Level 4 . | . . . Level 5 . | . . . High Security . | . . . Max Security . | . . . Squads Dispatched 2 | . 1 1 Investigation . | . . . Extermination . | . . . Reinforcement 2 | . 1 1 Assault . | . . . Garrison . | . . . Intercept . | . . . Searches Triggered . | . . . Construction Impeded . | . . . Haulers Reinforced . | . . . Active Scanning Responses . | . . . Cargo Convoy Interrupts . | . . . Stealth | -11 -10 -9 --------- Run | Yrd Mat Mat Distress Signals 5 | . 3 2 Communications Jammed . | . . . Distress Signals . | . . . Times Spotted 54 | . 19 35 Peak Tracking Total 13 | . 5 13 Tactical Retreats 4 | . . 4 Traps | -11 -10 -9 ------- Run | Yrd Mat Mat Traps Triggered 1 | . 1 . Indirectly . | . . . Trap Hack Attempts . | . . . Triggered . | . . . Disarmed . | . . . Reprogrammed . | . . . Reused . | . . . Traps Extracted . | . . . Installed . | . . . Triggered . | . . . Machines | -11 -10 -9 ---------- Run | Yrd Mat Mat Machines Disabled 4 | . 1 3 Max in Single Turn 2 | . 1 2 Machines Repaired . | . . . Machines Dismantled . | . . . Machines Sabotaged . | . . . Overloaded Fab Kills . | . . . Hacking | -11 -10 -9 --------- Run | Yrd Mat Mat Machines Accessed 5 | . 3 2 Terminals 5 | . 3 2 Fabricators . | . . . Repair Stations . | . . . Recycling Units . | . . . Scanalyzers . | . . . Garrison Access . | . . . Total Hacks 12 | . 8 4 Successful 4 | . 3 1 Failed 8 | . 5 3 Catastrophic 1 | . . 1 Database Lockouts . | . . . Manual . | . . . Terminals 12 | . 8 4 Fabricators . | . . . Repair Stations . | . . . Recycling Units . | . . . Scanalyzers . | . . . Garrison Access . | . . . Terminal Hacks 4 | . 3 1 Record 2 | . 2 . Unreport Threat 1 | . . 1 Locate Traps 1 | . 1 . Fabricator Hacks . | . . . Repair Station Hacks . | . . . Recycling Unit Hacks . | . . . Scanalyzer . | . . . Garrison Access Hacks . | . . . Unauthorized Hacks . | . . . Terminals . | . . . Fabricators . | . . . Repair Stations . | . . . Recycling Units . | . . . Scanalyzers . | . . . Garrison Access . | . . . Data Cores Recovered . | . . . Used . | . . . Hacking Detections 5 | . 3 2 Full Trace Events . | . . . Feedback Events . | . . . Feedback Blocked . | . . . Robot Schematics Acquired . | . . . Robots Built . | . . . Authchips . | . . . Time . | . . . Total Robot Build Rating . | . . . Part Schematics Acquired . | . . . Parts Built . | . . . Authchips . | . . . Time . | . . . Total Part Build Rating . | . . . Parts Repaired . | . . . Time . | . . . Parts Recycled . | . . . Recycled Matter . | . . . Retrieved Matter . | . . . Retrieved Components . | . . . Parts Scanalyzed . | . . . Part Schematics Acquired . | . . . Parts Damaged . | . . . Bothacking | -11 -10 -9 ------------ Run | Yrd Mat Mat Used RIF Installer . | . . . Robots Hacked . | . . . Non-combat . | . . . Combat . | . . . Robot Hacks Applied . | . . . Relay Couplers Released . | . . . Fabnet Peak Effective % . | . . . Robots Rewired . | . . . Allies Hacked . | . . . Hacks Repelled . | . . . Allies | -11 -10 -9 -------- Run | Yrd Mat Mat Total Allies . | . . . Largest Group . | . . . Highest-Rated Group . | . . . Highest-Rated Ally . | . . . Total Orders . | . . . Ally Attacks . | . . . Total Damage . | . . . Kills . | . . . Allies Corrupted . | . . . Allies Melted . | . . . Intel | -11 -10 -9 ------- Run | Yrd Mat Mat Robot Analysis Total . | . . . Derelict Logs Recovered . | . . . Drone Launches . | . . . Drone Recoveries . | . . . Exploration | -11 -10 -9 ------------- Run | Yrd Mat Mat Turns Passed 1377 | 79 657 641 Spaces Moved 880 | 59 422 399 Core 25 | 4 . 21 Treads . | . . . Legs 855 | 55 422 378 Wheels . | . . . Hover . | . . . Flight . | . . . Fastest Speed 50 | 50 120 100 Average Speed 119 | 116 120 119 Slowest Speed 200 | 120 190 200 Overloaded Moves . | . . . Propulsion Burnouts . | . . . Robots Hopped . | . . . Cave-ins Triggered . | . . . Exploration Rate (%) 28 | 4 51 30 Regions Visited 2 Branch Regions . Pre-discovered Areas . | . . . Known Exits Taken 1 | . 1 . Unknown Exits Taken 1 | 1 . . Scrap Searched . | . . . Spaces Dug . | . . . Terrain Destroyed 40 | . 9 31 Melee . | . . . Projectile . | . . . AOE 40 | . 9 31 Terrain Rammed . | . . . Walls Destroyed . | . . . Machines Disabled . | . . . Actions | -11 -10 -9 --------- Run | Yrd Mat Mat Total 1065 | 66 503 496 Wait 6 | . 2 4 Move 878 | 58 421 399 Hop . | . . . Pick Up 22 | 2 14 6 Fast Attach 11 | 6 3 2 Attach 11 | . 4 7 Detach 4 | . 3 1 Swap 1 | . . 1 Drop 16 | . 7 9 Fire 75 | . 39 36 Melee . | . . . Ram 17 | . . 17 Kick 24 | . 10 14 Crush . | . . . Escape Stasis . | . . . Rewire . | . . . Trap . | . . . Miscellaneous . | . . . Route ------- -11/Scrapyard -10/Materials -9/Materials History --------- Turn | Location | Event 17 | -11/Scrapyard | Discovered new exit (range 15) 80 | -11/Scrapyard | Entered Materials 305 | -10/Materials | Build established: Mutant 489 | -10/Materials | Lost 3 parts (1p1n1w) 705 | -10/Materials | Discovered new exit (range 8) 736 | -10/Materials | Identified exit to Materials 737 | -10/Materials | Entered another Materials area 737 | -9/Materials | Evolved 2 slots: Propulsion x2 1037 | -9/Materials | Build established: Scavenger-Mutant 1326 | -9/Materials | Core integrity fell below 50% 1327 | -9/Materials | Lost 9 parts (1p4n4w) 1364 | -9/Materials | Core integrity fell below 20% 1378 | -9/Materials | Core destroyed Last Messages --------------- Dropped Ion Engine. Dropped Cryofiber Web. Dropped Trap Scanner. Dropped Prototype Engine. Acquired Ion Engine. Aluminum Leg destroyed. Ion Engine destroyed. Slammed into K-01 Serf. K-01 Serf destroyed. K-01 Serf collects debris. Slammed into R-06 Scavenger. Signal Interpreter destroyed. System corrupted by crushing effect (+1). Slammed into M-13 Machinist. Slammed into R-06 Scavenger. Slammed into G-34 Mercenary. Slammed into A-02 Transporter. Slammed into K-01 Serf. Slammed into S-10 Pest. Destabilizing: Core damaged (-20). Map ----- +----------------------------------------------------+ | ?????? # !??????????????????????????????????????? | | ????? # ??! ???????????????????????????????????? | | ##### +??! ??????????????????????????????????? | | # #? ??????????????????????????????????? | | # ???????????????????????????????????? | | * # ?????????????????????????????????????? | | # =%# #"###+## ????????????????????????????????? | | = ???????????????????????????????? | | ???????????????????????????????? | | # [ #"%" ???????????????????????????????? | | ##/#" " #????????##?##?????????????????????? | | = #????????? ??????????????????????? | | %% % #????????? ??????????????????????? | | %= % % #?????????"S ??????????????????????? | | ##+"" #######???"""??????????????????????? | | ? " #??? ""??????????????????????? | | ? # / #??? ??????????????????????? | | # # "" #???#+#????#?????????????????? | | #]]]# #???# #?? #?????????????????? | | #]]!# ##### # #?????????????????? | | #]]!#? ####/###??#% % + = #?????????????????? | | #? #???? ????#%#####s# #?????????????????? | | #####? #?????????#%#???#%#?? #?????????????????? | | ????????#?????????# #???#s#????#?????????????????? | | ??????????????????# #???#%#??????????????????????? | | ??????????????????#%#???#@#??????????????????????? | | ??????????????????#%#???#s#??????????????????????? | | #########?????????#%#???# #??????????????????????? | | *! ! #?????????# #???# #??????????????????????? | | ####### #?????????# #???# #??????????????????????? | | ??????# #########?# #???# #??????????????????????? | | ??????# ## #?#!#???# #??????????????????????? | | ??????# ## """ #?#*#???# #??????????????????????? | | ??????# ## """ #?#%#???#+#??????????????????????? | | ??????# ## """ ###=###??????????????????????????? | | ??????# ## # %= #??????????????????????????? | | ??????# #####+### # #???????????????????? | | ####### + """?????????????????????? | | """ # ### # """?????????????????????? | | ! """ # #?# # """?????????????????????? | | """ + #?### ###?####?????????????????????? | | # ##### #???# #????????????##########??????? | | # #??## ##??# #????????????# """"" #??????? | | ! # #??# #??# #????????????# ""T"" #??????? | | ####+## #??# #?##+#####???????## #??????? | | ???#%## #??# ### #???????# #??????? | | ???# ##+##### + !! #???????## #??????? | | #??# # # # ! #???????# "" ######## | | #??# # # # [#??????## ##!!!!!! | | #??# # + + "T" #??????# ## !! ! | +----------------------------------------------------+ Best States ------------- Heat Dissipation 28 Energy Generation 12 Energy Capacity 265 Matter Stores 300 Matter Capacity 300 Sight Range 16 Terrain Scan Density 10 Evasion (%) 55 Targeting Accuracy 5 Item Schematics ----------------- None Robot Schematics ------------------ None Fabricated ------------ Nothing Alien Tech Used ----------------- None Achievements -------------- Everything Is Under Control Challenges ------------ None Game ------ Seed DeepFlyingBlaster Manual? 0 Play Time 00:14:54 Cumulative 5.1 hours Start 2024.04.17 @ 21:15:43 End 2024.04.17 @ 21:29:43 Sessions 1 Manual Loads 0 Difficulty Rogue Special Mode None Game No. 14 Rogue 14 Adventurer 0 Explorer 0 Win Type - Total 0 Types 0/0/0/0/0/0/0/0/0 Lore% 5 Gallery% 15 Achievement% 11 Wizard Run 0 Options --------- Layout 1 ASCII 0 Keyboard 1 Movement Vi Keybinds 0 Fullscreen 1 Font 28/SmallcapsGlow Map View 50x43 Zoom Use 0% Tactical HUD 0 Map Filters NONE Filters NONE Steam 0 RUN: e3178600-3dd4-419a-b63c-8a9e8808a3e4